fUST/lending_fUST_20250606
["ID","MTS","AMOUNT","RATE_DAILY","PERIOD"]
[364691080,1749208255590,-440.0,0.00022465,2]
[364691081,1749208255601,-440.0,0.00022465,2]
[364691082,1749208255612,-440.0,0.00022465,2]
[364691083,1749208255621,-440.0,0.00022465,2]
[364691084,1749208255631,-440.0,0.00022465,2]
[364691085,1749208255640,-440.0,0.00022465,2]
[364691086,1749208255649,-440.0,0.00022465,2]
[364691087,1749208255659,-440.0,0.00022465,2]
[364691088,1749208255668,-440.0,0.00022465,2]
[364691089,1749208255678,-536.32536451,0.00022465,2]
[364691090,1749208255688,-440.0,0.00022465,2]
[364691091,1749208255698,-440.0,0.00022465,2]
[364691092,1749208255707,-440.0,0.00022465,2]
[364691093,1749208255719,-440.0,0.00022465,2]
[364691094,1749208255729,-440.0,0.00022465,2]
[364691095,1749208255799,-440.0,0.00022465,2]
[364691096,1749208255809,-440.0,0.00022465,2]
[364691097,1749208255819,-440.0,0.00022465,2]
[364691098,1749208255828,-440.0,0.00022465,2]
[364691099,1749208255838,-418.1436889,0.00022465,2]
[364691100,1749208255848,-440.0,0.00022465,2]
[364691101,1749208255857,-389.12931405,0.00022465,2]
[364691102,1749208255867,-588.92170748,0.00022465,2]
[364691103,1749208255878,-390.0,0.00022465,2]
[364691104,1749208255887,-440.0,0.00022465,2]
[364691105,1749208255897,-330.02517784,0.00022465,2]
[364691106,1749208255907,-440.0,0.00022465,2]
[364691107,1749208255917,-440.0,0.00022465,2]
[364691108,1749208255927,-440.0,0.00022465,2]
[364691109,1749208255936,-440.0,0.00022465,2]
[364691110,1749208255945,-440.0,0.00022465,2]
[364691111,1749208255955,-500.0,0.00022465,2]
[364691112,1749208255964,-880.25,0.00022465,2]
[364691113,1749208255974,-440.0,0.00022465,2]
[364691114,1749208255983,-440.0,0.00022465,2]
[364691115,1749208255993,-440.0,0.00022465,2]
[364691116,1749208256003,-440.0,0.00022465,2]
[364691117,1749208256012,-440.0,0.00022465,2]
[364691118,1749208256021,-440.0,0.00022465,2]
[364691119,1749208256031,-706.33,0.00022465,2]
[364691120,1749208256041,-204.31447388,0.00022465,2]
[364691121,1749208256050,-440.0,0.00022465,2]
[364691122,1749208256060,-440.0,0.00022465,2]
[364691123,1749208256070,-440.0,0.00022465,2]
[364691124,1749208256079,-440.0,0.00022465,2]
[364691125,1749208256089,-446.18790948,0.00022465,2]
[364691126,1749208256098,-440.0,0.00022465,2]
[364691127,1749208256108,-440.0,0.00022465,2]
[364691128,1749208256117,-440.0,0.00022465,2]
[364691129,1749208256127,-490.39,0.00022465,2]
[364691130,1749208256137,-440.0,0.00022465,2]
[364691131,1749208256147,-440.0,0.00022465,2]
[364691132,1749208256157,-440.0,0.00022465,2]
[364691133,1749208256166,-440.0,0.00022465,2]
[364691134,1749208256176,-440.0,0.00022465,2]
[364691135,1749208256185,-440.0,0.00022465,2]
[364691136,1749208256194,-420.0,0.00022465,2]
[364691137,1749208256204,-440.0,0.00022465,2]
[364691138,1749208256213,-440.0,0.00022465,2]
[364691139,1749208256223,-407.12208221,0.00022465,2]
[364691140,1749208256233,-1051.41,0.00022465,2]
[364691141,1749208256242,-440.0,0.00022465,2]
[364691142,1749208256251,-440.0,0.00022465,2]
[364691143,1749208256261,-397.23,0.00022465,2]
[364691144,1749208256270,-440.0,0.00022465,2]
[364691145,1749208256280,-440.0,0.00022465,2]
[364691146,1749208256289,-743.09,0.00022465,2]
[364691147,1749208256298,-440.0,0.00022465,2]
[364691148,1749208256309,-440.0,0.00022465,2]
[364691149,1749208256319,-440.0,0.00022465,2]
[364691150,1749208256328,-414.73531558,0.00022465,2]
[364691151,1749208256338,-473.51,0.00022465,2]
[364691152,1749208256349,-413.11681066,0.00022465,2]
[364691153,1749208256359,-440.0,0.00022465,2]
[364691154,1749208256368,-404.25399972,0.00022465,2]
[364691155,1749208256378,-440.0,0.00022465,2]
[364691156,1749208256387,-403.63157636,0.00022465,2]
[364691157,1749208256396,-440.0,0.00022465,2]
[364691158,1749208256406,-440.0,0.00022465,2]
[364691159,1749208256415,-279.33182109,0.00022465,2]
[364691160,1749208256425,-440.0,0.00022465,2]
[364691161,1749208256435,-440.0,0.00022465,2]
[364691162,1749208256448,-373.51585032,0.00022465,2]
[364691163,1749208256457,-440.0,0.00022465,2]
[364691164,1749208256466,-440.0,0.00022465,2]
[364691165,1749208256476,-440.0,0.00022465,2]
[364691166,1749208256486,-440.0,0.00022465,2]
[364691167,1749208256495,-996.55,0.00022465,2]
[364691168,1749208256505,-440.0,0.00022465,2]
[364691169,1749208256518,-440.0,0.00022465,2]
[364691170,1749208256528,-440.0,0.00022465,2]
[364691171,1749208256538,-440.0,0.00022465,2]
[364691172,1749208256549,-440.0,0.00022465,2]
[364691173,1749208256558,-440.0,0.00022465,2]
[364691174,1749208256568,-360.0,0.00022465,2]
[364691175,1749208256579,-329.26940035,0.00022465,2]
[364691176,1749208256588,-440.0,0.00022465,2]
[364691177,1749208256598,-440.0,0.00022465,2]
[364691178,1749208256608,-440.0,0.00022465,2]
[364691179,1749208256618,-440.0,0.00022465,2]
[364691180,1749208256628,-440.0,0.00022465,2]
[364691181,1749208256637,-150.97819592,0.00022465,2]
[364691182,1749208256647,-440.0,0.00022465,2]
[364691183,1749208256656,-470.0,0.00022465,2]
[364691184,1749208256666,-440.0,0.00022465,2]
[364691185,1749208256676,-440.0,0.00022465,2]
[364691186,1749208256686,-3712.12,0.00022465,2]
[364691187,1749208256696,-440.0,0.00022465,2]
[364691188,1749208256707,-440.0,0.00022465,2]
[364691189,1749208256717,-440.0,0.00022465,2]
[364691190,1749208256726,-440.0,0.00022465,2]
[364691191,1749208256735,-440.0,0.00022465,2]
[364691192,1749208256745,-440.0,0.00022465,2]
[364691193,1749208256754,-165.11026315,0.00022465,2]
[364691194,1749208256764,-440.0,0.00022465,2]
[364691195,1749208256775,-440.0,0.00022465,2]
[364691196,1749208256785,-440.0,0.00022465,2]
[364691197,1749208256795,-440.0,0.00022465,2]
[364691198,1749208256881,-440.0,0.00022465,2]
[364691199,1749208256891,-400.0,0.00022465,2]
[364691200,1749208256901,-1189.9,0.00022465,2]
[364691201,1749208256910,-440.0,0.00022465,2]
[364691202,1749208256920,-440.0,0.00022465,2]
[364691203,1749208256930,-451.83,0.00022465,2]
[364691204,1749208256940,-1232.13,0.00022465,2]
[364691205,1749208256950,-440.0,0.00022465,2]
[364691206,1749208256960,-440.0,0.00022465,2]
[364691207,1749208256969,-440.0,0.00022465,2]
[364691208,1749208256978,-440.0,0.00022465,2]
[364691209,1749208256988,-410.0,0.00022465,2]
[364691210,1749208256999,-299.82535592,0.00022465,2]
[364691211,1749208257009,-440.0,0.00022465,2]
[364691212,1749208257018,-440.0,0.00022465,2]
[364691213,1749208257028,-440.0,0.00022465,2]
[364691214,1749208257038,-440.0,0.00022465,2]
[364691215,1749208257047,-410.0,0.00022465,2]
[364691216,1749208257060,-440.0,0.00022465,2]
[364691217,1749208257070,-440.0,0.00022465,2]
[364691218,1749208257080,-440.0,0.00022465,2]
[364691219,1749208257090,-185.13113311,0.00022465,2]
[364691220,1749208257099,-440.0,0.00022465,2]
[364691221,1749208257109,-313.09792175,0.00022465,2]
[364691222,1749208257118,-440.0,0.00022465,2]
[364691223,1749208257128,-440.0,0.00022465,2]
[364691224,1749208257138,-420.0,0.00022465,2]
[364691225,1749208257148,-440.0,0.00022465,2]
[364691226,1749208257158,-440.0,0.00022465,2]
[364691227,1749208257177,-554.55,0.00022465,2]
[364691228,1749208257191,-440.0,0.00022465,2]
[364691229,1749208257201,-440.0,0.00022465,2]
[364691230,1749208257210,-415.44151572,0.00022465,2]
[364691231,1749208257220,-440.0,0.00022465,2]
[364691232,1749208257230,-440.0,0.00022465,2]
[364691233,1749208257240,-371.24740836,0.00022465,2]
[364691234,1749208257249,-440.0,0.00022465,2]
[364691235,1749208257259,-713.45,0.00022465,2]
[364691236,1749208257269,-440.0,0.00022465,2]
[364691237,1749208257279,-440.0,0.00022465,2]
[364691238,1749208257290,-440.0,0.00022465,2]
[364691239,1749208257299,-440.0,0.00022465,2]
[364691240,1749208257310,-797.93,0.00022465,2]
[364691241,1749208257320,-440.0,0.00022465,2]
[364691242,1749208257330,-442.71679719,0.00022465,2]
[364691243,1749208257340,-440.0,0.00022465,2]
[364691244,1749208257350,-440.0,0.00022465,2]
[364691245,1749208257360,-4936.21,0.00022465,2]
[364691246,1749208257370,-223.51602027,0.00022465,2]
[364691247,1749208257379,-440.0,0.00022465,2]
[364691248,1749208257389,-440.0,0.00022465,2]
[364691249,1749208257398,-440.0,0.00022465,2]
[364691250,1749208257409,-4681.65,0.00022465,2]
[364691251,1749208257418,-440.0,0.00022465,2]
[364691252,1749208257427,-420.0,0.00022465,2]
[364691253,1749208257438,-440.0,0.00022465,2]
[364691254,1749208257449,-440.0,0.00022465,2]
[364691255,1749208257458,-440.0,0.00022465,2]
[364691256,1749208257468,-440.0,0.00022465,2]
[364691257,1749208257477,-744.29,0.00022465,2]
[364691258,1749208257489,-460.0,0.00022465,2]
[364691259,1749208257499,-3000.48,0.00022465,2]
[364691260,1749208257508,-440.0,0.00022465,2]
[364691261,1749208257520,-380.0,0.00022465,2]
[364691262,1749208257530,-444.95386273,0.00022465,2]
[364691263,1749208257539,-440.0,0.00022465,2]
[364691264,1749208257548,-440.0,0.00022465,2]
[364691265,1749208257558,-1192.64,0.00022465,2]
[364691266,1749208257568,-1070.68,0.00022465,2]
[364691267,1749208257577,-440.0,0.00022465,2]
[364691268,1749208257587,-1944.33,0.00022465,2]
[364691269,1749208257597,-440.0,0.00022465,2]
[364691270,1749208257607,-500.0,0.00022465,2]
[364691271,1749208257617,-861.46,0.00022465,2]
[364691272,1749208257626,-440.0,0.00022465,2]
[364691273,1749208257635,-440.0,0.00022465,2]
[364691274,1749208257645,-271.22802622,0.00022465,2]
[364691275,1749208257655,-440.0,0.00022465,2]
[364691276,1749208257665,-505.8680808,0.00022465,2]
[364691277,1749208257675,-438.58898723,0.00022465,2]
[364691278,1749208257685,-440.0,0.00022465,2]
[364691279,1749208257694,-608.5,0.00022465,2]
[364691280,1749208257704,-1769.86,0.00022465,2]
[364691281,1749208257714,-1639.72,0.00022465,2]
[364691282,1749208257724,-430.0,0.00022465,2]
[364691283,1749208257734,-440.0,0.00022465,2]
[364691284,1749208257744,-440.0,0.00022465,2]
[364691285,1749208257753,-440.0,0.00022465,2]
[364691286,1749208257763,-440.0,0.00022465,2]
[364691287,1749208257773,-524.53,0.00022465,2]
[364691288,1749208257783,-440.0,0.00022465,2]
[364691289,1749208257792,-387.77144109,0.00022465,2]
[364691290,1749208257801,-440.0,0.00022465,2]
[364691291,1749208257811,-440.0,0.00022465,2]
[364691292,1749208257820,-440.0,0.00022465,2]
[364691293,1749208257829,-440.0,0.00022465,2]
[364691294,1749208257839,-498.2,0.00022465,2]
[364691295,1749208257848,-440.0,0.00022465,2]
[364691296,1749208257858,-1771.61,0.00022465,2]
[364691297,1749208257867,-440.0,0.00022465,2]
[364691298,1749208257876,-1057.09,0.00022465,2]
[364691299,1749208257886,-440.0,0.00022465,2]
[364691300,1749208257895,-440.0,0.00022465,2]
[364691301,1749208257904,-2442.36,0.00022465,2]
[364691302,1749208257914,-440.0,0.00022465,2]
[364691303,1749208257923,-288.5202815,0.00022465,2]
[364691304,1749208257932,-440.0,0.00022465,2]
[364691305,1749208257941,-486.94,0.00022465,2]
[364691306,1749208257951,-400.0,0.00022465,2]
[364691307,1749208257960,-440.0,0.00022465,2]
[364691308,1749208257970,-191.86072879,0.00022465,2]
[364691309,1749208257980,-470.12,0.00022465,2]
[364691310,1749208257989,-440.0,0.00022465,2]
[364691311,1749208257998,-424.87681519,0.00022465,2]
[364691312,1749208258009,-818.92,0.00022465,2]
[364691313,1749208258019,-440.0,0.00022465,2]
[364691314,1749208258029,-440.0,0.00022465,2]
[364691315,1749208258039,-440.0,0.00022465,2]
[364691316,1749208258048,-442.05866841,0.00022465,2]
[364691317,1749208258058,-440.0,0.00022465,2]
[364691318,1749208258068,-440.0,0.00022465,2]
[364691319,1749208258078,-440.0,0.00022465,2]
[364691320,1749208258087,-440.0,0.00022465,2]
[364691321,1749208258097,-440.0,0.00022465,2]
[364691322,1749208258107,-440.0,0.00022465,2]
[364691323,1749208258116,-440.0,0.00022465,2]
[364691324,1749208258126,-440.0,0.00022465,2]
[364691325,1749208258135,-168.95824352,0.00022465,2]
[364691326,1749208258145,-575.51440866,0.00022465,2]
[364691327,1749208258154,-372.64623599,0.00022465,2]
[364691328,1749208258164,-440.0,0.00022465,2]
[364691329,1749208258173,-440.0,0.00022465,2]
[364691330,1749208258183,-444.24529464,0.00022465,2]
[364691331,1749208258192,-440.0,0.00022465,2]
[364691332,1749208258202,-440.0,0.00022465,2]
[364691333,1749208258211,-440.0,0.00022465,2]
[364691334,1749208258221,-440.0,0.00022465,2]
[364691335,1749208258231,-440.0,0.00022465,2]
[364691336,1749208258241,-681.11,0.00022465,2]
[364691337,1749208258250,-419.42661617,0.00022465,2]
[364691338,1749208258261,-988.23,0.00022465,2]
[364691339,1749208258271,-440.0,0.00022465,2]
[364691340,1749208258281,-440.0,0.00022465,2]
[364691341,1749208258291,-440.0,0.00022465,2]
[364691342,1749208258301,-440.0,0.00022465,2]
[364691343,1749208258312,-440.0,0.00022465,2]
[364691344,1749208258321,-427.79140019,0.00022465,2]
[364691345,1749208258332,-440.0,0.00022465,2]
[364691346,1749208258341,-440.0,0.00022465,2]
[364691347,1749208258351,-3244.81,0.00022465,2]
[364691348,1749208258361,-2240.57,0.00022465,2]
[364691349,1749208258371,-1989.85,0.00022465,2]
[364691350,1749208258380,-410.0,0.00022465,2]
[364691351,1749208258390,-1580.17,0.00022465,2]
[364691352,1749208258400,-440.0,0.00022465,2]
[364691353,1749208258410,-943.15,0.00022465,2]
[364691354,1749208258420,-153.66782447,0.00022465,2]
[364691355,1749208258430,-6747.86,0.00022465,2]
[364691356,1749208258443,-430.0,0.00022465,2]
[364691357,1749208258453,-150.0,0.00022465,2]
[364691358,1749208258462,-440.0,0.00022465,2]
[364691359,1749208258472,-427.44700746,0.00022465,2]
[364691360,1749208258482,-410.0,0.00022465,2]
[364691361,1749208258493,-283.11543993,0.00022465,2]
[364691362,1749208258503,-440.0,0.00022465,2]
[364691363,1749208258513,-420.89276745,0.00022465,2]
[364691364,1749208258523,-440.0,0.00022465,2]
[364691365,1749208258533,-440.0,0.00022465,2]
[364691366,1749208258542,-4117.32,0.00022465,2]
[364691367,1749208258552,-440.0,0.00022465,2]
[364691368,1749208258562,-440.0,0.00022465,2]
[364691369,1749208258571,-517.04,0.00022465,2]
[364691370,1749208258581,-440.0,0.00022465,2]
[364691371,1749208258591,-410.0,0.00022465,2]
[364691372,1749208258602,-718.67,0.00022465,2]
[364691373,1749208258612,-440.0,0.00022465,2]
[364691374,1749208258622,-440.0,0.00022465,2]
[364691375,1749208258631,-440.0,0.00022465,2]
[364691376,1749208258641,-387.48998091,0.00022465,2]
[364691377,1749208258650,-440.0,0.00022465,2]
[364691378,1749208258660,-448.56,0.00022465,2]
[364691379,1749208258670,-440.0,0.00022465,2]
[364691380,1749208258680,-440.0,0.00022465,2]
[364691381,1749208258689,-542.03,0.00022465,2]
[364691382,1749208258699,-1229.28,0.00022465,2]
[364691383,1749208258709,-405.16556294,0.00022465,2]
[364691384,1749208258719,-312.17375379,0.00022465,2]
[364691385,1749208258728,-440.0,0.00022465,2]
[364691386,1749208258738,-440.0,0.00022465,2]
[364691387,1749208258748,-432.44081996,0.00022465,2]
[364691388,1749208258758,-440.0,0.00022465,2]
[364691389,1749208258767,-4617.81,0.00022465,2]
[364691390,1749208258777,-706.65,0.00022465,2]
[364691391,1749208258786,-599.5,0.00022465,2]
[364691392,1749208258795,-440.0,0.00022465,2]
[364691393,1749208258804,-440.0,0.00022465,2]
[364691394,1749208258814,-440.0,0.00022465,2]
[364691395,1749208258823,-552.09,0.00022465,2]
[364691396,1749208258833,-440.0,0.00022465,2]
[364691397,1749208258842,-440.0,0.00022465,2]
[364691398,1749208258852,-512.84,0.00022465,2]
[364691399,1749208258861,-220.34110096,0.00022465,2]
[364691400,1749208258870,-440.0,0.00022465,2]
[364691401,1749208258879,-440.0,0.00022465,2]
[364691402,1749208258889,-440.0,0.00022465,2]
[364691403,1749208258899,-591.15,0.00022465,2]
[364691404,1749208258908,-440.0,0.00022465,2]
[364691405,1749208258917,-440.0,0.00022465,2]
[364691406,1749208258926,-842.5625,0.0002247,2]
[364691407,1749208258936,-212.976918,0.0002247,2]
[364691408,1749208258945,-834.50537533,0.0002247,2]
[364691409,1749208258954,-315.04936747,0.0002247,2]
[364691410,1749208259051,-160.0,0.0002247,2]
[364691411,1749208259063,-160.0,0.0002247,2]
[364691412,1749208259074,-229.52673067,0.0002247,2]
[364691413,1749208259084,-500.0,0.00022473,2]
[364691414,1749208259094,-501.61992717,0.00022473,2]
[364691415,1749208259104,-500.0,0.00022473,2]
[364691416,1749208259115,-504.08189668,0.00022473,2]
[364691417,1749208259125,-500.0,0.00022473,2]
[364691418,1749208259134,-254.32340032,0.00022488,2]
[364691419,1749208259144,-626.0,0.00022488,2]
[364691420,1749208259155,-151.0,0.00022488,2]
[364691421,1749208259165,-151.0,0.00022488,2]
[364691422,1749208259174,-152.60665104,0.00022488,2]
[364691423,1749208259183,-151.0,0.00022488,2]
[364691424,1749208259194,-153.80645641,0.00022488,2]
[364691425,1749208259203,-151.0,0.00022488,2]
[364691426,1749208259212,-151.0,0.00022488,2]
[364691427,1749208259221,-151.0,0.000225,6]
[364691428,1749208259231,-626.0,0.00022516,2]
[364691429,1749208259240,-203.16869086,0.00022516,2]
[364691430,1749208259250,-216.58091068,0.00022516,2]
[364691431,1749208259259,-208.27371741,0.00022516,2]
[364691432,1749208259271,-151.0,0.00022516,2]
[364691433,1749208259280,-151.0,0.00022516,2]
[364691434,1749208259289,-500.0,0.00022521,2]
[364691435,1749208259299,-391.65264876,0.00022521,2]
[364691436,1749208259309,-1116.49386402,0.00022521,2]
[364691437,1749208259319,-500.0,0.00022521,2]
[364691438,1749208259330,-500.0,0.00022521,2]
[364691439,1749208259340,-1000.0,0.00022521,2]
[364691440,1749208259350,-501.34950391,0.00022521,2]
[364691441,1749208259359,-1000.0,0.00022521,2]
[364691442,1749208259369,-502.6359938,0.00022521,2]
[364691443,1749208259378,-1000.0,0.00022521,2]
[364691444,1749208259387,-501.4655427,0.00022521,2]
[364691445,1749208259397,-537.978401,0.00022521,2]
[364691446,1749208259406,-1000.0,0.00022521,2]
[364691447,1749208259415,-1000.0,0.00022521,2]
[364691448,1749208259424,-1000.0,0.00022521,2]
[364691449,1749208259436,-1000.0,0.00022521,2]
[364691450,1749208259447,-1000.0,0.00022521,2]
[364691451,1749208259458,-500.89279523,0.00022521,2]
[364691452,1749208259467,-1000.0,0.00022521,2]
[364691453,1749208259477,-591.22118864,0.00022521,2]
[364691454,1749208259486,-214.13172695,0.00022521,2]
[364691455,1749208259496,-187.22449109,0.00022521,2]
[364691456,1749208259506,-626.0,0.00022543,2]
[364691457,1749208259516,-217.43248077,0.00022543,2]
[364691458,1749208259525,-151.0,0.00022543,2]
[364691459,1749208259534,-626.0,0.00022571,2]
[364691460,1749208259544,-216.49355573,0.00022571,2]
[364691461,1749208259553,-626.0,0.00022598,2]
[364691462,1749208259562,-5326.47285906,0.00022624,7]
[364691463,1749208259572,-626.0,0.00022625,2]
[364691464,1749208259581,-160.0,0.00022638,2]
[364691465,1749208259591,-6821.44282732,0.00022639,2]
[364691466,1749208259601,-626.0,0.00022653,2]
[364691467,1749208259610,-500.0,0.00022656,2]
[364691468,1749208259619,-500.0,0.00022656,2]
[364691469,1749208259630,-500.0,0.00022656,2]
[364691470,1749208259639,-1688.0,0.00022656,2]
[364691471,1749208259649,-500.0,0.00022656,2]
[364691472,1749208259658,-500.0,0.00022656,2]
[364691473,1749208259667,-500.0,0.00022656,2]
[364691474,1749208259676,-500.0,0.00022656,2]
[364691475,1749208259685,-500.0,0.00022656,2]
[364691476,1749208259694,-500.0,0.00022656,2]
[364691477,1749208259704,-500.0,0.00022656,2]
[364691478,1749208259713,-500.0,0.00022656,2]
[364691479,1749208259722,-500.0,0.00022656,2]
[364691480,1749208259731,-500.0,0.00022656,2]
[364691481,1749208259740,-500.0,0.00022656,2]
[364691482,1749208259750,-500.0,0.00022656,2]
[364691483,1749208259760,-500.0,0.00022656,2]
[364691484,1749208259769,-500.0,0.00022656,2]
[364691485,1749208259779,-500.0,0.00022656,2]
[364691486,1749208259788,-500.0,0.00022656,2]
[364691487,1749208259798,-500.0,0.00022656,2]
[364691488,1749208259807,-500.0,0.00022656,2]
[364691489,1749208259817,-500.0,0.00022656,2]
[364691490,1749208259826,-500.0,0.00022656,2]
[364691491,1749208259836,-258.0,0.00022656,2]
[364691492,1749208259845,-500.0,0.00022656,2]
[364691493,1749208259854,-500.0,0.00022656,2]
[364691494,1749208259864,-500.0,0.00022656,2]
[364691495,1749208259873,-500.0,0.00022656,2]
[364691496,1749208259885,-500.0,0.00022656,2]
[364691497,1749208259894,-500.0,0.00022656,2]
[364691498,1749208259902,-500.0,0.00022656,2]
[364691499,1749208259911,-207.4,0.00022656,2]
[364691500,1749208259920,-1500.0,0.00022668,2]
[364691501,1749208259929,-1500.0,0.00022668,2]
[364691502,1749208259938,-626.0,0.0002268,2]
[364691503,1749208259948,-626.0,0.00022708,2]
[364691504,1749208259957,-1750.456,0.00022711,2]
[364691505,1749208259967,-1000.0,0.00022721,2]
[364691506,1749208259976,-502.02936203,0.00022721,2]
[364691507,1749208259985,-503.33837888,0.00022721,2]
[364691508,1749208259994,-923.273341,0.00022721,2]
[364691509,1749208260003,-1000.0,0.00022721,2]
[364691510,1749208260013,-1005.94338316,0.00022721,2]
[364691511,1749208260022,-1200.0,0.00022721,2]
[364691512,1749208260032,-500.0,0.0002273,2]
[364691513,1749208260042,-500.0,0.0002273,2]
[364691514,1749208260052,-626.0,0.00022735,2]
[364691515,1749208260062,-440.0,0.00022739,2]
[364691516,1749208260072,-440.0,0.00022739,2]
[364691517,1749208260081,-166.58158457,0.00022739,2]
[364691518,1749208260091,-440.0,0.00022739,2]
[364691519,1749208260100,-440.0,0.00022739,2]
[364691520,1749208260109,-440.0,0.00022739,2]
[364691521,1749208260118,-440.0,0.00022739,2]
[364691522,1749208260128,-440.0,0.00022739,2]
[364691523,1749208260137,-440.0,0.00022739,2]
[364691524,1749208260147,-440.0,0.00022739,2]
[364691525,1749208260156,-440.0,0.00022739,2]
[364691526,1749208260165,-182.29166958,0.00022739,2]
[364691527,1749208260174,-440.0,0.00022739,2]
[364691528,1749208260183,-440.0,0.00022739,2]
[364691529,1749208260192,-440.0,0.00022739,2]
[364691530,1749208260201,-440.0,0.00022739,2]
[364691531,1749208260210,-440.0,0.00022739,2]
[364691532,1749208260219,-374.26342745,0.00022739,2]
[364691533,1749208260228,-440.0,0.00022739,2]
[364691534,1749208260238,-440.0,0.00022739,2]
[364691535,1749208260249,-440.0,0.00022739,2]
[364691536,1749208260259,-440.0,0.00022739,2]
[364691537,1749208260269,-440.0,0.00022739,2]
[364691538,1749208260278,-440.0,0.00022739,2]
[364691539,1749208260288,-440.0,0.00022739,2]
[364691540,1749208260297,-440.0,0.00022739,2]
[364691541,1749208260307,-440.0,0.00022739,2]
[364691542,1749208260317,-440.0,0.00022739,2]
[364691543,1749208260327,-255.54590601,0.00022739,2]
[364691544,1749208260336,-440.0,0.00022739,2]
[364691545,1749208260346,-511.08935426,0.00022739,2]
[364691546,1749208260355,-377.99944859,0.00022739,2]
[364691547,1749208260365,-176.80794452,0.00022739,2]
[364691548,1749208260375,-440.0,0.00022739,2]
[364691549,1749208260386,-436.77734418,0.00022739,2]
[364691550,1749208260394,-440.0,0.00022739,2]
[364691551,1749208260403,-440.0,0.00022739,2]
[364691552,1749208260415,-511.93017923,0.00022739,2]
[364691553,1749208260425,-359.922574,0.00022739,2]
[364691554,1749208260434,-440.0,0.00022739,2]
[364691555,1749208260445,-440.0,0.00022739,2]
[364691556,1749208260454,-440.0,0.00022739,2]
[364691557,1749208260463,-414.83824822,0.00022739,2]
[364691558,1749208260473,-440.0,0.00022739,2]
[364691559,1749208260482,-440.0,0.00022739,2]
[364691560,1749208260491,-424.94080551,0.00022739,2]
[364691561,1749208260501,-440.0,0.00022739,2]
[364691562,1749208260511,-440.0,0.00022739,2]
[364691563,1749208260521,-440.0,0.00022739,2]
[364691564,1749208260530,-440.0,0.00022739,2]
[364691565,1749208260539,-440.0,0.00022739,2]
[364691566,1749208260549,-440.0,0.00022739,2]
[364691567,1749208260559,-440.0,0.00022739,2]
[364691568,1749208260568,-440.0,0.00022739,2]
[364691569,1749208260577,-369.13846385,0.00022739,2]
[364691570,1749208260586,-432.96608141,0.00022739,2]
[364691571,1749208260596,-440.0,0.00022739,2]
[364691572,1749208260605,-440.0,0.00022739,2]
[364691573,1749208260615,-440.0,0.00022739,2]
[364691574,1749208260624,-440.0,0.00022739,2]
[364691575,1749208260636,-440.0,0.00022739,2]
[364691576,1749208260646,-440.0,0.00022739,2]
[364691577,1749208260655,-440.0,0.00022739,2]
[364691578,1749208260665,-440.0,0.00022739,2]
[364691579,1749208260674,-410.0,0.00022739,2]